[Event "FTX Road to Miami Prelims 2022"]
[Site "Online"]
[Date "2022.07.04"]
[Round "14.4"]
[White "Dominguez Perez, Leinier"]
[Black "Aronian, Levon"]
[Result "0-1"]
[ECO "C50"]
[WhiteElo "2754"]
[BlackElo "2775"]
[Annotator "ChessBase"]
[PlyCount "92"]
[EventDate "2022.07.10"]
[EventType "tourn"]
[EventCountry "NET"]
[SourceTitle "playchess.com"]
[Source "ChessBase"]
[SourceQuality "1"]
[TimeControl "40/5400+30:1800+30"]

1. e4 {[%emt 1:15:40]} e5 {[%emt 1:15:40]} 2. Nf3 {[%emt 0:00:21]} Nc6 {[%emt 0:00:22]} 3. Bc4 {[%emt 0:00:21]} Nf6 {[%emt 0:00:21]} 4. d3 {[%emt 0:00:21]} Bc5 {[%emt 0:00:21]} 5. O-O {[%emt 0:00:22]} O-O {[%emt 0:00:21]} 6. Re1 {[%emt 0:00:21]} Ng4 {[%emt 0:00:21]} 7. Re2 {[%emt 0:00:22]} Kh8 {[%emt 0:00:22]} 8. h3 {[%emt 0:00:21]} f5 {[%emt 0:00:22]} 9. Bg5 {[%emt 0:00:20]} Nf6 {[%emt 0:00:23]} 10. Nc3 {[%emt 0:00:21]} d6 {[%emt 0:00:26]} 11. exf5 {[%emt 0:00:21]} Bxf5 {[%emt 0:00:25]} 12. Na4 {[%emt 0:00:22]} Bb6 {[%emt 0:00:27]} 13. Nxb6 {[%emt 0:00:21]} axb6 {[%emt 0:00:21]} 14. d4 {[%emt 0:00:20]} h6 {[%emt 0:00:45]} 15. dxe5 {[%emt 0:00:22]} dxe5 {[%emt 0:00:21]} 16. Bh4 {[%emt 0:00:21]} e4 {[%emt 0:00:57]} 17. Nh2 {[%emt 0:00:21]} Qe7 {[%emt 0:01:13]} 18. Nf1 {[%emt 0:00:23]} Bg6 {[%emt 0:01:03]} 19. Rd2 {[%emt 0:05:16]} Qb4 {[%emt 0:00:25]} 20. Bxf6 {[%emt 0:03:04]} Rxf6 {[%emt 0:02:23]} 21. Bb3 {[%emt 0:00:22]} Ne5 {[%emt 0:01:15]} 22. Ne3 {[%emt 0:01:00]} c6 {[%emt 0:00:22]} 23. Rd8+ {[%emt 0:00:52]} Rf8 {[%emt 0:00:23]} 24. Rxa8 {[%emt 0:00:47]} Rxa8 {[%emt 0:00:20]} 25. a3 {[%emt 0:00:49]} Qc5 {[%emt 0:01:03]} 26. Be6 {[%emt 0:02:40]} Rf8 {[%emt 0:01:44]} 27. Qd2 {[%emt 0:02:54]} Qe7 {[%emt 0:00:24]} 28. Qb4 {[%emt 0:00:41]} Qf6 {[%emt 0:01:28]} 29. Rf1 {[%emt 0:00:23]} b5 {[%emt 0:00:21]} 30. Bg4 {[%emt 0:00:47]} Kh7 {[%emt 0:01:09]} 31. Be2 {[%emt 0:00:22]} Rd8 {[%emt 0:00:45]} 32. Rd1 {[%emt 0:00:25]} Rf8 {[%emt 0:00:24]} 33. Rf1 {[%emt 0:00:51]} Rd8 {[%emt 0:00:22]} 34. Qc3 {[%emt 0:00:26]} Rf8 {[%emt 0:01:05]} 35. Qa5 {[%emt 0:01:48]} Qg5 {[%emt 0:01:14]} 36. Kh1 {[%emt 0:00:41]} Qh4 {[%emt 0:00:57]} 37. Kg1 {[%emt 0:02:37]} Nf3+ {[%emt 0:02:10]} 38. Kh1 {[%emt 0:00:22]} Ng5 {[%emt 0:02:09]} 39. Kg1 {[%emt 0:00:24]} Rf3 {[%emt 0:00:28]} 40. Qc7 {[%emt 0:01:06]} Rxh3 {[%emt 0:00:25]} 41. gxh3 {[%emt 0:30:27]} Nxh3+ {[%emt 0:30:21]} 42. Kg2 {[%emt 0:00:23]} Nf4+ {[%emt 0:00:21]} 43. Kg1 {[%emt 0:00:21]} Nxe2+ {[%emt 0:00:20]} 44. Kg2 {[%emt 0:00:21]} Nf4+ {[%emt 0:00:40]} 45. Kg1 {[%emt 0:00:21]} Qg5+ {[%emt 0:00:21]} 46. Kh2 {[%emt 0:00:51]} Bh5 {[%emt 0:00:31]} 0-1

[Event "FTX Road to Miami Prelims 2022"]
[Site "Online"]
[Date "2022.07.04"]
[Round "14.5"]
[White "Duda, Jan-Krzysztof"]
[Black "Sevian, Samuel"]
[Result "1-0"]
[ECO "E49"]
[WhiteElo "2750"]
[BlackElo "2684"]
[Annotator "ChessBase"]
[PlyCount "53"]
[EventDate "2022.07.10"]
[EventType "tourn"]
[EventCountry "NET"]
[SourceTitle "playchess.com"]
[Source "ChessBase"]
[SourceQuality "1"]
[TimeControl "40/5400+30:1800+30"]

1. d4 {[%emt 1:15:40]} Nf6 {[%emt 1:15:40]} 2. c4 {[%emt 0:00:23]} e6 {[%emt 0:00:22]} 3. Nc3 {[%emt 0:00:21]} Bb4 {[%emt 0:00:21]} 4. e3 {[%emt 0:00:20]} O-O {[%emt 0:00:22]} 5. Bd3 {[%emt 0:00:22]} d5 {[%emt 0:00:21]} 6. a3 {[%emt 0:01:13]} Bxc3+ {[%emt 0:00:24]} 7. bxc3 {[%emt 0:00:20]} dxc4 {[%emt 0:00:20]} 8. Bxc4 {[%emt 0:00:20]} c5 {[%emt 0:00:21]} 9. Ne2 {[%emt 0:00:21]} Qc7 {[%emt 0:00:21]} 10. Bd3 {[%emt 0:00:26]} Nc6 {[%emt 0:00:28]} 11. f4 {[%emt 0:00:39]} Rd8 {[%emt 0:02:24]} 12. O-O {[%emt 0:00:23]} b6 {[%emt 0:04:04]} 13. Ng3 {[%emt 0:00:46]} a5 {[%emt 0:00:49]} 14. Qe2 {[%emt 0:00:52]} Qa7 {[%emt 0:02:25]} 15. e4 {[%emt 0:08:32]} Ba6 {[%emt 0:00:46]} 16. e5 {[%emt 0:00:54]} Bxd3 {[%emt 0:03:46]} 17. Qxd3 {[%emt 0:00:20]} Ne8 {[%emt 0:00:22]} 18. f5 {[%emt 0:00:58]} cxd4 {[%emt 0:01:29]} 19. fxe6 {[%emt 0:00:56]} Nxe5 {[%emt 0:00:39]} 20. exf7+ {[%emt 0:01:54]} Nxf7 {[%emt 0:01:40]} 21. cxd4 {[%emt 0:00:22]} Qd7 {[%emt 0:01:18]} 22. Nf5 {[%emt 0:00:49]} Ned6 {[%emt 0:00:53]} 23. Nxg7 {[%emt 0:00:26]} Kxg7 {[%emt 0:00:30]} 24. d5 {[%emt 0:00:56]} Rg8 {[%emt 0:01:19]} 25. Qg3+ {[%emt 0:00:27]} Kf8 {[%emt 0:01:01]} 26. Bh6+ {[%emt 0:00:23]} Ke7 {[%emt 0:00:24]} 27. Rae1+ {[%emt 0:00:27]} 1-0

[Event "FTX Road to Miami Prelims 2022"]
[Site "Online"]
[Date "2022.07.04"]
[Round "14.6"]
[White "Mamedyarov, Shakhriyar"]
[Black "Tari, Aryan"]
[Result "0-1"]
[ECO "D00"]
[WhiteElo "2759"]
[BlackElo "2672"]
[Annotator "ChessBase"]
[PlyCount "86"]
[EventDate "2022.07.10"]
[EventType "tourn"]
[EventCountry "NET"]
[SourceTitle "playchess.com"]
[Source "ChessBase"]
[SourceQuality "1"]
[TimeControl "40/5400+30:1800+30"]

1. d4 {[%emt 1:15:40]} Nf6 {[%emt 1:15:40]} 2. Bg5 {[%emt 0:00:28]} d5 {[%emt 0:00:24]} 3. Bxf6 {[%emt 0:00:23]} gxf6 {[%emt 0:00:21]} 4. c4 {[%emt 0:00:26]} e5 {[%emt 0:00:27]} 5. e3 {[%emt 0:00:24]} exd4 {[%emt 0:03:37]} 6. exd4 {[%emt 0:00:24]} Nc6 {[%emt 0:00:36]} 7. Nc3 {[%emt 0:00:37]} dxc4 {[%emt 0:00:50]} 8. Nf3 {[%emt 0:04:57]} Bg4 {[%emt 0:02:19]} 9. Be2 {[%emt 0:00:39]} Qd7 {[%emt 0:00:55]} 10. O-O {[%emt 0:00:41]} O-O-O {[%emt 0:00:52]} 11. d5 {[%emt 0:00:22]} Bxf3 {[%emt 0:01:25]} 12. Bxf3 {[%emt 0:00:21]} Ne5 {[%emt 0:00:21]} 13. Be4 {[%emt 0:00:20]} Bc5 {[%emt 0:01:25]} 14. Qh5 {[%emt 0:01:43]} Kb8 {[%emt 0:00:24]} 15. Bf5 {[%emt 0:00:21]} Qe7 {[%emt 0:00:49]} 16. Kh1 {[%emt 0:00:20]} Bd4 {[%emt 0:01:04]} 17. Rad1 {[%emt 0:00:53]} Qc5 {[%emt 0:01:07]} 18. Ne4 {[%emt 0:01:39]} Qxd5 {[%emt 0:01:23]} 19. Nxf6 {[%emt 0:00:23]} Qc5 {[%emt 0:01:11]} 20. b3 {[%emt 0:02:58]} Qb6 {[%emt 0:01:09]} 21. Ne4 {[%emt 0:00:55]} c3 {[%emt 0:00:51]} 22. Ng5 {[%emt 0:01:36]} Qf6 {[%emt 0:02:43]} 23. Bc2 {[%emt 0:00:40]} h6 {[%emt 0:00:29]} 24. Ne4 {[%emt 0:00:32]} Qe6 {[%emt 0:00:48]} 25. h3 {[%emt 0:00:46]} Nc6 {[%emt 0:00:59]} 26. a3 {[%emt 0:00:39]} f5 {[%emt 0:00:34]} 27. Ng3 {[%emt 0:00:26]} f4 {[%emt 0:00:21]} 28. Ne4 {[%emt 0:00:42]} Qe5 {[%emt 0:00:30]} 29. Qf3 {[%emt 0:00:57]} Qa5 {[%emt 0:00:27]} 30. Ra1 {[%emt 0:01:01]} Rhf8 {[%emt 0:00:36]} 31. b4 {[%emt 0:00:27]} Qb6 {[%emt 0:00:21]} 32. Qh5 {[%emt 0:01:19]} Ne5 {[%emt 0:00:33]} 33. Bb3 {[%emt 0:02:06]} f3 {[%emt 0:00:24]} 34. g3 {[%emt 0:00:30]} Qc6 {[%emt 0:00:56]} 35. Nc5 {[%emt 0:00:45]} Bxc5 {[%emt 0:00:38]} 36. Qxe5 {[%emt 0:00:21]} Bd4 {[%emt 0:00:23]} 37. Qh5 {[%emt 0:00:41]} Bb6 {[%emt 0:00:38]} 38. Rae1 {[%emt 0:00:40]} Rd2 {[%emt 0:00:31]} 39. Re6 {[%emt 0:00:23]} Qd7 {[%emt 0:00:31]} 40. Rxh6 {[%emt 0:00:43]} Qd3 {[%emt 0:00:37]} 41. Rg1 {[%emt 0:30:40]} Rxf2 {[%emt 0:30:26]} 42. Rf6 {[%emt 0:00:28]} Rd8 {[%emt 0:00:33]} 43. Rf5 {[%emt 0:00:32]} Qd2 {[%emt 0:00:25]} 0-1

[Event "FTX Road to Miami Prelims 2022"]
[Site "Online"]
[Date "2022.07.04"]
[Round "14.7"]
[White "Erigaisi Arjun"]
[Black "Xiong, Jeffery"]
[Result "1-0"]
[ECO "D02"]
[WhiteElo "2689"]
[BlackElo "2691"]
[Annotator "ChessBase"]
[PlyCount "41"]
[EventDate "2022.07.10"]
[EventType "tourn"]
[EventCountry "NET"]
[SourceTitle "playchess.com"]
[Source "ChessBase"]
[SourceQuality "1"]
[TimeControl "40/5400+30:1800+30"]

1. d4 {[%emt 1:15:40]} Nf6 {[%emt 1:15:40]} 2. Bf4 {[%emt 0:00:22]} d5 {[%emt 0:01:22]} 3. e3 {[%emt 0:00:24]} e6 {[%emt 0:00:29]} 4. Nf3 {[%emt 0:00:29]} c5 {[%emt 0:00:23]} 5. Nbd2 {[%emt 0:00:25]} Qb6 {[%emt 0:00:23]} 6. c4 {[%emt 0:02:11]} cxd4 {[%emt 0:01:53]} 7. exd4 {[%emt 0:01:23]} dxc4 {[%emt 0:00:22]} 8. Nxc4 {[%emt 0:00:29]} Bb4+ {[%emt 0:00:24]} 9. Bd2 {[%emt 0:00:22]} Bxd2+ {[%emt 0:00:30]} 10. Qxd2 {[%emt 0:00:20]} Qd8 {[%emt 0:00:37]} 11. Qb4 {[%emt 0:00:26]} Qe7 {[%emt 0:04:47]} 12. Nd6+ {[%emt 0:00:44]} Kf8 {[%emt 0:00:21]} 13. Ne5 {[%emt 0:02:29]} Nc6 {[%emt 0:03:35]} 14. Qa3 {[%emt 0:00:23]} Nxd4 {[%emt 0:02:19]} 15. O-O-O {[%emt 0:01:04]} Nc6 {[%emt 0:00:51]} 16. Nexf7 {[%emt 0:00:36]} Rg8 {[%emt 0:00:22]} 17. Bc4 {[%emt 0:00:48]} Bd7 {[%emt 0:01:01]} 18. Rhe1 {[%emt 0:00:25]} Ne8 {[%emt 0:02:16]} 19. Qh3 {[%emt 0:01:44]} Nd8 {[%emt 0:00:44]} 20. Nxd8 {[%emt 0:00:55]} Rxd8 {[%emt 0:02:02]} 21. Nxe8 {[%emt 0:01:01]} 1-0

[Event "FTX Road to Miami Prelims 2022"]
[Site "Online"]
[Date "2022.07.04"]
[Round "14.8"]
[White "Ju, Wenjun"]
[Black "Giri, Anish"]
[Result "0-1"]
[ECO "E69"]
[WhiteElo "2560"]
[BlackElo "2760"]
[Annotator "ChessBase"]
[PlyCount "78"]
[EventDate "2022.07.10"]
[EventType "tourn"]
[EventCountry "NET"]
[SourceTitle "playchess.com"]
[Source "ChessBase"]
[SourceQuality "1"]
[TimeControl "40/5400+30:1800+30"]

1. d4 {[%emt 1:15:40]} Nf6 {[%emt 1:15:40]} 2. c4 {[%emt 0:00:21]} g6 {[%emt 0:00:22]} 3. Nf3 {[%emt 0:00:22]} Bg7 {[%emt 0:00:21]} 4. g3 {[%emt 0:00:22]} O-O {[%emt 0:00:22]} 5. Bg2 {[%emt 0:00:20]} d6 {[%emt 0:00:35]} 6. O-O {[%emt 0:00:22]} Nbd7 {[%emt 0:00:27]} 7. Nc3 {[%emt 0:00:21]} e5 {[%emt 0:00:21]} 8. e4 {[%emt 0:00:21]} exd4 {[%emt 0:00:22]} 9. Nxd4 {[%emt 0:00:22]} Nc5 {[%emt 0:00:30]} 10. h3 {[%emt 0:00:23]} Re8 {[%emt 0:00:28]} 11. Re1 {[%emt 0:00:22]} h6 {[%emt 0:00:27]} 12. Rb1 {[%emt 0:00:27]} a5 {[%emt 0:00:24]} 13. b3 {[%emt 0:00:22]} c6 {[%emt 0:00:21]} 14. Bb2 {[%emt 0:01:43]} h5 {[%emt 0:00:34]} 15. a3 {[%emt 0:03:41]} Nh7 {[%emt 0:01:24]} 16. b4 {[%emt 0:00:42]} axb4 {[%emt 0:00:22]} 17. axb4 {[%emt 0:00:21]} Nd7 {[%emt 0:02:40]} 18. Nc2 {[%emt 0:01:09]} Nb6 {[%emt 0:02:50]} 19. Ne3 {[%emt 0:00:42]} Ng5 {[%emt 0:00:23]} 20. h4 {[%emt 0:02:10]} Nh3+ {[%emt 0:00:44]} 21. Kf1 {[%emt 0:00:27]} Be6 {[%emt 0:00:25]} 22. Qd3 {[%emt 0:03:26]} g5 {[%emt 0:01:44]} 23. c5 {[%emt 0:04:52]} dxc5 {[%emt 0:00:29]} 24. Qxd8 {[%emt 0:00:21]} Rexd8 {[%emt 0:00:21]} 25. bxc5 {[%emt 0:00:21]} Rd2 {[%emt 0:00:36]} 26. Ncd1 {[%emt 0:01:01]} Ra2 {[%emt 0:02:26]} 27. cxb6 {[%emt 0:01:55]} Bxb2 {[%emt 0:00:21]} 28. Bxh3 {[%emt 0:00:53]} Bxh3+ {[%emt 0:00:23]} 29. Kg1 {[%emt 0:00:20]} Bd4 {[%emt 0:02:33]} 30. hxg5 {[%emt 0:00:21]} Kh7 {[%emt 0:01:04]} 31. Kh2 {[%emt 0:01:12]} Bg4 {[%emt 0:00:29]} 32. Nxg4 {[%emt 0:00:33]} hxg4 {[%emt 0:00:20]} 33. Rf1 {[%emt 0:00:21]} Kg6 {[%emt 0:00:31]} 34. Kg2 {[%emt 0:00:24]} Kxg5 {[%emt 0:00:29]} 35. e5 {[%emt 0:00:30]} Re2 {[%emt 0:00:36]} 36. Rb3 {[%emt 0:00:32]} c5 {[%emt 0:00:39]} 37. Rd3 {[%emt 0:00:24]} Kf5 {[%emt 0:00:32]} 38. Rh1 {[%emt 0:00:29]} Ke4 {[%emt 0:01:12]} 39. Rb3 {[%emt 0:00:48]} Rxf2+ {[%emt 0:00:23]} 0-1

[Event "FTX Road to Miami Prelims 2022"]
[Site "Online"]
[Date "2022.07.04"]
[Round "15.1"]
[White "Giri, Anish"]
[Black "Niemann, Hans Moke"]
[Result "1-0"]
[ECO "E97"]
[WhiteElo "2760"]
[BlackElo "2688"]
[Annotator "ChessBase"]
[PlyCount "49"]
[EventDate "2022.07.10"]
[EventType "tourn"]
[EventCountry "NET"]
[SourceTitle "playchess.com"]
[Source "ChessBase"]
[SourceQuality "1"]
[TimeControl "40/5400+30:1800+30"]

1. d4 {[%emt 1:15:40]} Nf6 {[%emt 1:15:40]} 2. c4 {[%emt 0:00:21]} g6 {[%emt 0:00:32]} 3. Nc3 {[%emt 0:00:22]} Bg7 {[%emt 0:00:21]} 4. e4 {[%emt 0:00:21]} d6 {[%emt 0:00:20]} 5. Nf3 {[%emt 0:00:21]} O-O {[%emt 0:00:22]} 6. Be2 {[%emt 0:00:21]} e5 {[%emt 0:00:24]} 7. O-O {[%emt 0:00:29]} h6 {[%emt 0:00:40]} 8. Be3 {[%emt 0:01:25]} Ng4 {[%emt 0:00:29]} 9. Bc1 {[%emt 0:00:21]} Nf6 {[%emt 0:00:21]} 10. Be3 {[%emt 0:00:21]} Nc6 {[%emt 0:00:41]} 11. d5 {[%emt 0:00:30]} Ne7 {[%emt 0:00:22]} 12. Nd2 {[%emt 0:00:29]} c5 {[%emt 0:00:54]} 13. Rb1 {[%emt 0:01:12]} h5 {[%emt 0:00:22]} 14. h3 {[%emt 0:00:29]} Kh7 {[%emt 0:00:38]} 15. b4 {[%emt 0:00:39]} b6 {[%emt 0:00:21]} 16. bxc5 {[%emt 0:00:46]} bxc5 {[%emt 0:00:20]} 17. Qc1 {[%emt 0:00:31]} Nfg8 {[%emt 0:00:32]} 18. Nf3 {[%emt 0:00:30]} Bh6 {[%emt 0:00:37]} 19. Ng5+ {[%emt 0:00:43]} Kg7 {[%emt 0:00:23]} 20. f4 {[%emt 0:00:24]} f6 {[%emt 0:00:57]} 21. fxe5 {[%emt 0:01:51]} fxg5 {[%emt 0:00:56]} 22. Rxf8 {[%emt 0:00:23]} Kxf8 {[%emt 0:00:21]} 23. Bxg5 {[%emt 0:00:28]} Bg7 {[%emt 0:00:33]} 24. Qf4+ {[%emt 0:00:41]} Ke8 {[%emt 0:00:31]} 25. e6 {[%emt 0:00:38]} 1-0

[Event "FTX Road to Miami Prelims 2022"]
[Site "Online"]
[Date "2022.07.04"]
[Round "15.2"]
[White "Xiong, Jeffery"]
[Black "Ju, Wenjun"]
[Result "1/2-1/2"]
[ECO "C54"]
[WhiteElo "2691"]
[BlackElo "2560"]
[Annotator "ChessBase"]
[PlyCount "135"]
[EventDate "2022.07.10"]
[EventType "tourn"]
[EventCountry "NET"]
[SourceTitle "playchess.com"]
[Source "ChessBase"]
[SourceQuality "1"]
[TimeControl "40/5400+30:1800+30"]

1. e4 {[%emt 1:15:40]} e5 {[%emt 1:15:40]} 2. Nf3 {[%emt 0:00:22]} Nc6 {[%emt 0:00:21]} 3. Bc4 {[%emt 0:00:22]} Bc5 {[%emt 0:00:22]} 4. c3 {[%emt 0:00:21]} Nf6 {[%emt 0:00:20]} 5. d4 {[%emt 0:00:21]} exd4 {[%emt 0:00:21]} 6. e5 {[%emt 0:00:20]} d5 {[%emt 0:00:21]} 7. Be2 {[%emt 0:00:21]} Ne4 {[%emt 0:00:26]} 8. cxd4 {[%emt 0:00:21]} Bb6 {[%emt 0:00:29]} 9. O-O {[%emt 0:00:22]} O-O {[%emt 0:01:00]} 10. Nc3 {[%emt 0:00:22]} f6 {[%emt 0:00:46]} 11. exf6 {[%emt 0:00:29]} Nxf6 {[%emt 0:00:23]} 12. Na4 {[%emt 0:01:21]} Bf5 {[%emt 0:00:40]} 13. Bf4 {[%emt 0:01:29]} h6 {[%emt 0:02:44]} 14. Nxb6 {[%emt 0:01:01]} axb6 {[%emt 0:00:20]} 15. Ne5 {[%emt 0:00:21]} Nxe5 {[%emt 0:01:41]} 16. Bxe5 {[%emt 0:00:20]} Nd7 {[%emt 0:02:09]} 17. Bg3 {[%emt 0:00:27]} c6 {[%emt 0:00:32]} 18. a4 {[%emt 0:01:50]} Qf6 {[%emt 0:00:29]} 19. Qd2 {[%emt 0:00:27]} Rfe8 {[%emt 0:00:27]} 20. Rfd1 {[%emt 0:00:27]} Kh8 {[%emt 0:02:04]} 21. Ra3 {[%emt 0:00:25]} Qg6 {[%emt 0:02:03]} 22. Bf4 {[%emt 0:01:25]} Re6 {[%emt 0:00:55]} 23. Bf1 {[%emt 0:00:42]} Rae8 {[%emt 0:00:40]} 24. h3 {[%emt 0:01:22]} Qf7 {[%emt 0:01:09]} 25. Bg3 {[%emt 0:01:31]} Qe7 {[%emt 0:00:39]} 26. a5 {[%emt 0:01:37]} bxa5 {[%emt 0:00:25]} 27. Qxa5 {[%emt 0:00:20]} Nf6 {[%emt 0:01:00]} 28. Be5 {[%emt 0:00:27]} Ne4 {[%emt 0:00:58]} 29. Qc7 {[%emt 0:01:18]} Qxc7 {[%emt 0:01:24]} 30. Bxc7 {[%emt 0:00:20]} Nd6 {[%emt 0:00:21]} 31. Ra7 {[%emt 0:00:43]} R8e7 {[%emt 0:00:49]} 32. Bb8 {[%emt 0:00:52]} Nc4 {[%emt 0:00:58]} 33. b3 {[%emt 0:00:30]} Nb2 {[%emt 0:00:59]} 34. Rd2 {[%emt 0:01:23]} Re1 {[%emt 0:00:23]} 35. Rxb2 {[%emt 0:00:33]} Bd3 {[%emt 0:00:23]} 36. Be5 {[%emt 0:00:21]} Rxf1+ {[%emt 0:00:24]} 37. Kh2 {[%emt 0:00:21]} Kh7 {[%emt 0:00:29]} 38. f4 {[%emt 0:00:37]} g5 {[%emt 0:00:59]} 39. fxg5 {[%emt 0:02:05]} hxg5 {[%emt 0:00:20]} 40. Ra8 {[%emt 0:00:21]} Ref7 {[%emt 0:00:39]} 41. Rh8+ {[%emt 0:30:25]} Kg6 {[%emt 0:30:21]} 42. Rg8+ {[%emt 0:00:20]} Kh6 {[%emt 0:00:31]} 43. b4 {[%emt 0:00:45]} Rb1 {[%emt 0:01:23]} 44. Rxb1 {[%emt 0:00:58]} Bxb1 {[%emt 0:00:20]} 45. Kg3 {[%emt 0:00:21]} Be4 {[%emt 0:00:47]} 46. h4 {[%emt 0:00:31]} gxh4+ {[%emt 0:00:25]} 47. Kxh4 {[%emt 0:00:20]} Kh7 {[%emt 0:00:25]} 48. Rb8 {[%emt 0:00:22]} Kg6 {[%emt 0:00:31]} 49. g4 {[%emt 0:00:21]} Rh7+ {[%emt 0:00:28]} 50. Kg3 {[%emt 0:00:21]} Rf7 {[%emt 0:00:27]} 51. Rd8 {[%emt 0:00:23]} Rh7 {[%emt 0:01:49]} 52. Rb8 {[%emt 0:00:23]} Rf7 {[%emt 0:00:23]} 53. Rg8+ {[%emt 0:00:20]} Kh7 {[%emt 0:00:21]} 54. Rd8 {[%emt 0:00:20]} Kg6 {[%emt 0:01:27]} 55. Rd6+ {[%emt 0:00:22]} Kg5 {[%emt 0:00:27]} 56. Rd8 {[%emt 0:01:13]} Rf3+ {[%emt 0:00:22]} 57. Kh2 {[%emt 0:00:21]} Kxg4 {[%emt 0:00:31]} 58. Rg8+ {[%emt 0:00:21]} Kh5 {[%emt 0:00:22]} 59. Rg7 {[%emt 0:01:58]} b5 {[%emt 0:00:27]} 60. Bd6 {[%emt 0:00:24]} Kh6 {[%emt 0:00:55]} 61. Rg1 {[%emt 0:00:28]} Rd3 {[%emt 0:00:24]} 62. Bc5 {[%emt 0:00:26]} Kh5 {[%emt 0:00:23]} 63. Bb6 {[%emt 0:00:30]} Bf5 {[%emt 0:00:28]} 64. Rg3 {[%emt 0:00:29]} Rd2+ {[%emt 0:00:26]} 65. Rg2 {[%emt 0:00:20]} Rd3 {[%emt 0:00:24]} 66. Rg3 {[%emt 0:00:21]} Rd2+ {[%emt 0:00:21]} 67. Rg2 {[%emt 0:00:21]} Rd3 {[%emt 0:00:20]} 68. Rg3 {[%emt 0:00:21]} 1/2-1/2

[Event "FTX Road to Miami Prelims 2022"]
[Site "Online"]
[Date "2022.07.04"]
[Round "15.3"]
[White "Tari, Aryan"]
[Black "Erigaisi Arjun"]
[Result "1/2-1/2"]
[ECO "B52"]
[WhiteElo "2672"]
[BlackElo "2689"]
[Annotator "ChessBase"]
[PlyCount "100"]
[EventDate "2022.07.10"]
[EventType "tourn"]
[EventCountry "NET"]
[SourceTitle "playchess.com"]
[Source "ChessBase"]
[SourceQuality "1"]
[TimeControl "40/5400+30:1800+30"]

1. e4 {[%emt 1:15:40]} c5 {[%emt 1:15:40]} 2. Nf3 {[%emt 0:00:23]} d6 {[%emt 0:00:22]} 3. Bb5+ {[%emt 0:00:22]} Bd7 {[%emt 0:00:22]} 4. Bxd7+ {[%emt 0:00:24]} Qxd7 {[%emt 0:00:20]} 5. c4 {[%emt 0:00:21]} Nf6 {[%emt 0:00:22]} 6. Nc3 {[%emt 0:00:21]} Nc6 {[%emt 0:00:21]} 7. d4 {[%emt 0:00:22]} cxd4 {[%emt 0:00:21]} 8. Nxd4 {[%emt 0:00:20]} g6 {[%emt 0:00:20]} 9. f3 {[%emt 0:00:23]} Bg7 {[%emt 0:00:22]} 10. Be3 {[%emt 0:00:21]} O-O {[%emt 0:00:20]} 11. O-O {[%emt 0:00:22]} a6 {[%emt 0:00:21]} 12. Nb3 {[%emt 0:00:22]} Rfd8 {[%emt 0:01:24]} 13. Qe2 {[%emt 0:00:33]} Rab8 {[%emt 0:00:30]} 14. Rfd1 {[%emt 0:02:25]} Qe8 {[%emt 0:00:25]} 15. Rac1 {[%emt 0:01:40]} Nd7 {[%emt 0:00:38]} 16. Qf2 {[%emt 0:02:21]} b6 {[%emt 0:00:48]} 17. Nd5 {[%emt 0:00:29]} Nc5 {[%emt 0:00:22]} 18. Nd4 {[%emt 0:00:39]} Ne5 {[%emt 0:00:48]} 19. Qe2 {[%emt 0:00:47]} e6 {[%emt 0:00:21]} 20. Nc3 {[%emt 0:00:24]} Rdc8 {[%emt 0:01:08]} 21. b3 {[%emt 0:01:07]} h5 {[%emt 0:00:42]} 22. h3 {[%emt 0:00:30]} Qe7 {[%emt 0:00:30]} 23. Kh1 {[%emt 0:02:13]} Qb7 {[%emt 0:01:01]} 24. Bg5 {[%emt 0:01:12]} Re8 {[%emt 0:00:42]} 25. Be3 {[%emt 0:01:21]} Rbc8 {[%emt 0:00:53]} 26. Rc2 {[%emt 0:01:51]} Qe7 {[%emt 0:00:49]} 27. Qd2 {[%emt 0:00:35]} Bf6 {[%emt 0:02:21]} 28. Qe2 {[%emt 0:00:52]} Bg7 {[%emt 0:01:03]} 29. f4 {[%emt 0:00:23]} Ned7 {[%emt 0:00:50]} 30. Nf3 {[%emt 0:01:33]} Bxc3 {[%emt 0:02:28]} 31. Bxc5 {[%emt 0:00:22]} Nxc5 {[%emt 0:00:20]} 32. Rxc3 {[%emt 0:00:21]} b5 {[%emt 0:00:20]} 33. Rc2 {[%emt 0:01:23]} Qb7 {[%emt 0:00:47]} 34. Re1 {[%emt 0:01:03]} Nd7 {[%emt 0:01:20]} 35. cxb5 {[%emt 0:00:37]} Rxc2 {[%emt 0:00:30]} 36. Qxc2 {[%emt 0:00:20]} axb5 {[%emt 0:00:20]} 37. Qd3 {[%emt 0:00:27]} Qb6 {[%emt 0:01:42]} 38. b4 {[%emt 0:01:02]} Nf6 {[%emt 0:01:51]} 39. Qc3 {[%emt 0:00:42]} e5 {[%emt 0:00:21]} 40. fxe5 {[%emt 0:01:31]} dxe5 {[%emt 0:00:22]} 41. Qd2 {[%emt 0:30:23]} Qc6 {[%emt 0:32:14]} 42. Qe2 {[%emt 0:00:22]} Kg7 {[%emt 0:00:32]} 43. a3 {[%emt 0:00:41]} Qc3 {[%emt 0:00:48]} 44. Qxb5 {[%emt 0:00:39]} Qxa3 {[%emt 0:00:21]} 45. Qc4 {[%emt 0:00:43]} Re7 {[%emt 0:00:52]} 46. b5 {[%emt 0:00:29]} Qb2 {[%emt 0:00:40]} 47. Re2 {[%emt 0:00:47]} Qb1+ {[%emt 0:00:26]} 48. Kh2 {[%emt 0:00:21]} Rb7 {[%emt 0:00:27]} 49. Nxe5 {[%emt 0:00:32]} Qxb5 {[%emt 0:00:22]} 50. Qxb5 {[%emt 0:00:26]} Rxb5 {[%emt 0:00:20]} 1/2-1/2